[Event "DEN-ch Landsholdsklassen 2021"]
[Site "Svendborg"]
[Date "2021.10.23"]
[Round "8.5"]
[White "Fries-Nielsen, Jens Ove"]
[Black "Haubro, Martin"]
[Result "1/2-1/2"]
[ECO "D31"]
[WhiteElo "2378"]
[BlackElo "2426"]
[Annotator "ChessBase"]
[PlyCount "61"]
[EventDate "2021.10.16"]
[EventType "tourn"]
[EventCountry "DEN"]
[SourceTitle "playchess.com"]
[Source "ChessBase"]
[SourceQuality "1"]
[TimeControl "40/5400+30:1800+30"]

1. d4 {[%emt 0:02:18]} d5 {[%emt 0:00:06]} 2. c4 {[%emt 0:00:34]} e6 {[%emt 0:00:20]} 3. Nc3 {[%emt 0:00:28]} a6 {[%emt 0:01:02]} 4. cxd5 {[%emt 0:00:20]} exd5 {[%emt 0:00:05]} 5. Qb3 {[%emt 0:00:08]} Nf6 {[%emt 0:03:48]} 6. Bg5 {[%emt 0:00:28]} c5 {[%emt 0:01:52]} 7. Bxf6 {[%emt 0:04:00]} gxf6 {[%emt 0:00:04]} 8. Qxd5 {[%emt 0:02:21]} Qb6 {[%emt 0:10:55]} 9. O-O-O {[%emt 0:10:18]} Be6 {[%emt 0:00:42]} 10. Qe4 {[%emt 0:06:51]} cxd4 {[%emt 0:00:06]} 11. Qxd4 {[%emt 0:00:14]} Bc5 {[%emt 0:16:15]} 12. Qxf6 {[%emt 0:01:58]} Rg8 {[%emt 0:01:54]} 13. Na4 {[%emt 0:20:02]} Qa5 {[%emt 0:02:52]} 14. Nxc5 {[%emt 0:01:26]} Qxc5+ {[%emt 0:00:05]} 15. Qc3 {[%emt 0:00:16]} Nd7 {[%emt 0:27:40]} 16. Kb1 {[%emt 0:22:17]} Qxf2 {[%emt 0:02:49]} 17. Nh3 {[%emt 0:00:33]} Qh4 {[%emt 0:12:43]} 18. e4 {[%emt 0:02:14]} Nf6 {[%emt 0:02:55]} 19. Qe3 {[%emt 0:06:34]} Qxe4+ {[%emt 0:04:53]} 20. Qxe4 {[%emt 0:00:51]} Nxe4 {[%emt 0:00:05]} 21. Bd3 {[%emt 0:00:42]} Bxh3 {[%emt 0:01:59]} 22. gxh3 {[%emt 0:08:10]} Nf2 {[%emt 0:00:05]} 23. Bxh7 {[%emt 0:01:33]} Rh8 {[%emt 0:02:06]} 24. Rhe1+ {[%emt 0:00:53]} Kf8 {[%emt 0:00:09]} 25. Rd2 {[%emt 0:00:17]} Rxh7 {[%emt 0:01:43]} 26. Rxf2 {[%emt 0:00:08]} Rxh3 {[%emt 0:00:07]} 27. Ref1 {[%emt 0:02:15]} Rh7 {[%emt 0:00:05]} 28. Rc1 {[%emt 0:00:28]} Re8 {[%emt 0:02:08]} 29. Rc3 {[%emt 0:00:51]} Rh6 {[%emt 0:01:14]} 30. Kc2 {[%emt 0:00:37]} Re7 {[%emt 0:01:12]} 31. Kd2 {[%emt 0:00:38]} 1/2-1/2

[Event "DEN-ch Landsholdsklassen 2021"]
[Site "Svendborg"]
[Date "2021.10.24"]
[Round "9.3"]
[White "Haubro, Martin"]
[Black "Schandorff, Lars"]
[Result "0-1"]
[ECO "C65"]
[WhiteElo "2426"]
[BlackElo "2458"]
[Annotator "ChessBase"]
[PlyCount "60"]
[EventDate "2021.10.16"]
[EventType "tourn"]
[EventCountry "DEN"]
[SourceTitle "playchess.com"]
[Source "ChessBase"]
[SourceQuality "1"]
[TimeControl "40/5400+30:1800+30"]

1. e4 {[%emt 0:00:03]} e5 {[%emt 0:00:14]} 2. Nf3 {[%emt 0:00:04]} Nc6 {[%emt 0:00:06]} 3. Bb5 {[%emt 0:00:03]} Nf6 {[%emt 0:00:30]} 4. d3 {[%emt 0:00:21]} Bc5 {[%emt 0:00:19]} 5. c3 {[%emt 0:00:05]} d5 {[%emt 0:00:57]} 6. exd5 {[%emt 0:08:15]} Qxd5 {[%emt 0:00:25]} 7. Bc4 {[%emt 0:00:03]} Qd6 {[%emt 0:00:22]} 8. O-O {[%emt 0:00:06]} Bb6 {[%emt 0:02:31]} 9. Qe2 {[%emt 0:14:31]} O-O {[%emt 0:02:39]} 10. b4 {[%emt 0:09:20]} Bg4 {[%emt 0:14:54]} 11. a4 {[%emt 0:05:11]} a6 {[%emt 0:04:40]} 12. h3 {[%emt 0:02:31]} Bh5 {[%emt 0:01:02]} 13. Nbd2 {[%emt 0:01:15]} Nd5 {[%emt 0:09:53]} 14. Ne4 {[%emt 0:01:40]} Qd8 {[%emt 0:00:54]} 15. a5 {[%emt 0:14:19]} Ba7 {[%emt 0:01:25]} 16. Qa2 {[%emt 0:03:53]} Nde7 {[%emt 0:15:13]} 17. Nh2 {[%emt 0:05:25]} Kh8 {[%emt 0:06:41]} 18. Be3 {[%emt 0:04:52]} f5 {[%emt 0:07:04]} 19. Ng5 {[%emt 0:02:16]} Qd6 {[%emt 0:03:38]} 20. Bxa7 {[%emt 0:01:01]} Nxa7 {[%emt 0:00:39]} 21. Rae1 {[%emt 0:00:12]} Nec6 {[%emt 0:07:03]} 22. Bf7 {[%emt 0:06:55]} Qf6 {[%emt 0:00:47]} 23. Bxh5 {[%emt 0:00:16]} Qxg5 {[%emt 0:00:05]} 24. Bf3 {[%emt 0:00:14]} Rad8 {[%emt 0:01:01]} 25. Qc4 {[%emt 0:03:53]} Rd6 {[%emt 0:00:53]} 26. Re3 {[%emt 0:05:51]} Qd8 {[%emt 0:01:07]} 27. Rd1 {[%emt 0:02:11]} e4 {[%emt 0:02:54]} 28. Be2 {[%emt 0:00:04]} Ne5 {[%emt 0:00:33]} 29. Qc5 {[%emt 0:00:23]} Nac6 {[%emt 0:00:14]} 30. d4 {[%emt 0:02:29]} b6 {[%emt 0:02:01]} 0-1

[Event "DEN-ch Landsholdsklassen 2021"]
[Site "Svendborg"]
[Date "2021.10.24"]
[Round "9.5"]
[White "Rewitz, Poul"]
[Black "Antonsen, Mikkel"]
[Result "0-1"]
[ECO "A03"]
[WhiteElo "2264"]
[BlackElo "2409"]
[Annotator "ChessBase"]
[PlyCount "70"]
[EventDate "2021.10.16"]
[EventType "tourn"]
[EventCountry "DEN"]
[SourceTitle "playchess.com"]
[Source "ChessBase"]
[SourceQuality "1"]
[TimeControl "40/5400+30:1800+30"]

1. f4 {[%emt 0:00:11]} d5 {[%emt 0:00:11]} 2. Nf3 {[%emt 0:00:48]} Bg4 {[%emt 0:00:08]} 3. e3 {[%emt 0:03:01]} Nd7 {[%emt 0:00:16]} 4. h3 {[%emt 0:01:13]} Bxf3 {[%emt 0:00:10]} 5. Qxf3 {[%emt 0:00:14]} c6 {[%emt 0:01:21]} 6. d4 {[%emt 0:04:07]} e6 {[%emt 0:00:36]} 7. Bd3 {[%emt 0:01:20]} h5 {[%emt 0:03:19]} 8. g3 {[%emt 0:13:47]} f5 {[%emt 0:00:07]} 9. c4 {[%emt 0:04:47]} Ngf6 {[%emt 0:01:00]} 10. cxd5 {[%emt 0:02:42]} cxd5 {[%emt 0:00:05]} 11. Nc3 {[%emt 0:05:49]} a6 {[%emt 0:00:15]} 12. Qg2 {[%emt 0:03:26]} Kf7 {[%emt 0:01:32]} 13. Bd2 {[%emt 0:04:48]} Rc8 {[%emt 0:01:34]} 14. O-O {[%emt 0:04:55]} Bd6 {[%emt 0:03:16]} 15. Rac1 {[%emt 0:02:56]} Qe7 {[%emt 0:00:08]} 16. Nd1 {[%emt 0:10:43]} Rxc1 {[%emt 0:01:21]} 17. Bxc1 {[%emt 0:00:06]} Nb6 {[%emt 0:01:01]} 18. Nf2 {[%emt 0:01:36]} g6 {[%emt 0:01:05]} 19. Bd2 {[%emt 0:04:49]} Bb4 {[%emt 0:00:37]} 20. Bxb4 {[%emt 0:01:55]} Qxb4 {[%emt 0:00:06]} 21. b3 {[%emt 0:08:36]} Qd2 {[%emt 0:01:17]} 22. Qf3 {[%emt 0:02:33]} Qxa2 {[%emt 0:00:31]} 23. Qd1 {[%emt 0:00:22]} Rc8 {[%emt 0:00:23]} 24. Bb1 {[%emt 0:00:30]} Qa3 {[%emt 0:03:49]} 25. Nd3 {[%emt 0:00:11]} Rc3 {[%emt 0:00:27]} 26. Bc2 {[%emt 0:09:03]} Ne4 {[%emt 0:00:52]} 27. Ne5+ {[%emt 0:01:15]} Kg7 {[%emt 0:00:04]} 28. g4 {[%emt 0:03:53]} hxg4 {[%emt 0:00:57]} 29. hxg4 {[%emt 0:00:16]} Rxe3 {[%emt 0:00:14]} 30. Bxe4 {[%emt 0:01:03]} dxe4 {[%emt 0:00:36]} 31. gxf5 {[%emt 0:02:33]} exf5 {[%emt 0:00:58]} 32. Qc1 {[%emt 0:00:52]} Qxb3 {[%emt 0:01:16]} 33. Qc7+ {[%emt 0:01:34]} Kh6 {[%emt 0:00:09]} 34. Kf2 {[%emt 0:00:31]} Rh3 {[%emt 0:00:13]} 35. Nf7+ {[%emt 0:00:47]} Kh5 {[%emt 0:00:05]} 0-1